bitfinex/quotes_BTCUSD_20220226
["timestamp","ask_amount","ask_price","bid_price","bid_amount"]
[1645866141582,0.13072951,38806.0,38805.0,0.65329512]
[1645866142183,0.13066951,38806.0,38805.0,0.65629512]
[1645866142483,0.43066951,38806.0,38805.0,0.65629512]
[1645866143286,0.43066951,38806.0,38805.0,0.65329512]
[1645866143484,0.13066951,38806.0,38805.0,0.87899544]
[1645866143685,0.22561485,38808.0,38805.0,0.87899544]
[1645866143883,0.13066951,38808.0,38805.0,0.87899544]
[1645866144483,0.13066951,38808.0,38805.0,0.65329512]
[1645866144713,0.10810803,38808.0,38805.0,0.65329512]
[1645866144912,0.40810803,38808.0,38805.0,0.65329512]
[1645866145312,0.40810803,38808.0,38805.0,0.65356464]
[1645866146314,0.40810803,38808.0,38805.0,0.65329512]
[1645866146512,0.40810803,38808.0,38805.0,0.65356464]
[1645866147113,0.10810803,38808.0,38805.0,0.65356464]
[1645866147315,0.40810803,38808.0,38805.0,0.65356464]
[1645866147514,0.10810803,38808.0,38805.0,0.65329512]
[1645866147715,0.10810803,38808.0,38805.0,0.65353978]
[1645866147914,0.3,38808.0,38805.0,0.65353978]
[1645866148114,0.02576,38814.0,38805.0,0.65653978]
[1645866148115,0.10810803,38806.0,38805.0,0.65653978]
[1645866148315,0.32576,38814.0,38805.0,0.65653978]
[1645866148573,0.10810803,38808.0,38805.0,0.65653978]
[1645866148869,0.10810803,38808.0,38805.0,0.65629512]
[1645866149266,0.10810803,38808.0,38805.0,0.65329512]
[1645866150169,0.10810803,38808.0,38805.0,0.65753978]
[1645866151075,0.10810803,38808.0,38805.0,0.65729512]
[1645866151269,0.10810803,38808.0,38805.0,0.65354625]
[1645866152070,0.10810803,38808.0,38805.0,0.65554625]
[1645866152310,0.09494534,38810.0,38805.0,0.65529512]
[1645866152515,0.09494534,38810.0,38805.0,0.65554625]
[1645866153312,0.09494534,38810.0,38805.0,0.65354625]
[1645866153615,0.09494534,38810.0,38806.0,0.00025112]
[1645866153813,0.10810803,38808.0,38806.0,0.00025112]
[1645866154715,0.09494534,38810.0,38805.0,0.65329512]
[1645866154914,0.20305337,38810.0,38805.0,0.65354418]
[1645866155964,0.20305337,38810.0,38805.0,0.65329512]
[1645866156169,0.20305337,38810.0,38806.0,7.502e-05]
[1645866156365,0.10810803,38807.0,38806.0,7.502e-05]
[1645866156566,0.09494534,38809.0,38806.0,7.502e-05]
[1645866157165,0.09494534,38809.0,38805.0,0.65629512]
[1645866157365,0.09494534,38809.0,38806.0,7.502e-05]
[1645866157564,0.09494534,38809.0,38808.0,0.19053217]
[1645866157965,0.3,38815.0,38808.0,0.19053217]
[1645866158366,0.06443886,38816.0,38808.0,0.19053217]
[1645866158570,0.3,38815.0,38810.0,8.691e-05]
[1645866158771,0.00017382,38809.0,38808.0,0.19053217]
[1645866160221,0.00017382,38809.0,38808.0,0.19353217]
[1645866160720,0.00017382,38809.0,38808.0,0.003]
[1645866161119,0.00017382,38809.0,38805.0,0.65129512]
[1645866161325,0.53558865,38817.0,38805.0,0.65129512]
[1645866161521,0.56134865,38817.0,38805.0,0.65129512]
[1645866161824,0.53441159,38813.0,38805.0,0.65129512]
[1645866162024,0.53441159,38813.0,38805.0,0.49659512]
[1645866162025,0.405501,38811.0,38805.0,0.49659512]
[1645866162219,1.165141,38809.0,38805.0,0.10318688]
[1645866162420,1.2,38807.0,38803.0,0.0011]
[1645866162619,1.2,38805.0,38802.0,0.0011]
[1645866162822,0.3103,38804.0,38802.0,0.0011]
[1645866163225,0.3603,38804.0,38802.0,0.0011]
[1645866163463,0.3,38803.0,38802.0,0.0011]
[1645866166163,0.3,38803.0,38802.0,0.0021]
[1645866166767,0.3,38803.0,38796.0,0.0011]
[1645866167063,0.3,38803.0,38801.0,0.00230324]
[1645866167717,0.364467,38803.0,38801.0,0.00230324]
[1645866167917,0.3,38802.0,38801.0,0.002]
[1645866168118,0.114467,38803.0,38801.0,0.002]
[1645866168418,0.06446191,38803.0,38801.0,0.002]
[1645866168925,0.3,38802.0,38800.0,0.00030324]
[1645866169119,0.3,38802.0,38796.0,0.0011]
[1645866169120,0.489245,38802.0,38796.0,0.0011]
[1645866169322,0.05,38801.0,38796.0,0.0011]
[1645866169520,0.3,38800.0,38796.0,0.0011]
[1645866169721,0.15940979,38799.0,38796.0,0.0011]
[1645866169920,0.50940979,38799.0,38796.0,0.0011]
[1645866170120,0.44494534,38799.0,38796.0,0.0011]
[1645866170320,0.3,38798.0,38796.0,0.0011]
[1645866170520,0.3,38798.0,38796.0,0.00140325]
[1645866171371,0.09494534,38799.0,38796.0,0.00140325]
[1645866171578,0.09494534,38799.0,38796.0,0.0011]
[1645866171772,0.09361716,38799.0,38796.0,0.0011]
[1645866173173,0.3,38805.0,38796.0,0.0011]
[1645866173375,0.10810803,38807.0,38797.0,0.0525]
[1645866173576,0.3,38810.0,38797.0,0.0525]
[1645866173773,0.10810803,38806.0,38797.0,0.1025]
[1645866173976,0.3,38805.0,38797.0,0.1025]
[1645866174180,0.3,38805.0,38801.0,0.18836299]
[1645866175414,0.10810803,38806.0,38801.0,0.1886424]
[1645866176318,0.10810803,38802.0,38797.0,0.001]
[1645866176518,0.27745336,38801.0,38797.0,0.001]
[1645866176722,0.27783512,38804.0,38797.0,0.001]
[1645866177118,0.07576,38805.0,38797.0,0.001]
[1645866177319,0.02576,38805.0,38797.0,0.001]
[1645866177720,0.12892444,38805.0,38799.0,0.00028328]
[1645866177922,0.10810803,38800.0,38799.0,0.00028328]
[1645866178770,0.10810803,38800.0,38797.0,0.001]
[1645866178967,0.0103,38803.0,38798.0,0.00028328]
[1645866179168,0.10810803,38799.0,38798.0,0.00028328]
[1645866179970,0.10810803,38799.0,38797.0,0.001]
[1645866180171,0.10810803,38799.0,38797.0,0.00127998]
[1645866180570,0.20810803,38799.0,38797.0,0.00127998]
[1645866180773,0.33705159,38799.0,38797.0,0.00127998]
[1645866181071,0.33705159,38799.0,38797.0,0.00027998]
[1645866181072,0.60982042,38799.0,38797.0,0.00027998]
[1645866181271,0.59952042,38799.0,38796.0,0.0011]
[1645866181471,0.33705159,38799.0,38796.0,0.00137998]
[1645866181672,0.06447083,38798.0,38796.0,0.00137998]
[1645866182319,0.06447083,38798.0,38796.0,0.0011]
[1645866184319,0.10810803,38799.0,38796.0,0.0011]
[1645866185620,0.20810803,38799.0,38796.0,0.0011]
[1645866185818,0.21840803,38799.0,38796.0,0.0011]
[1645866186069,0.20810803,38799.0,38796.0,0.0011]
[1645866186269,0.3,38798.0,38796.0,0.0011]
[1645866186771,0.36447051,38798.0,38796.0,0.0011]
[1645866186972,0.3,38797.0,38796.0,0.0011]
[1645866187275,0.35,38797.0,38796.0,0.0011]
[1645866187872,0.27732186,38797.0,38796.0,0.0011]
[1645866188374,0.00329999,38795.0,38794.0,0.0011]
[1645866188571,1.08454099,38795.0,38794.0,0.001]
[1645866188773,0.0326,38785.0,38776.0,0.5936]
[1645866188972,0.0326,38785.0,38784.0,0.001]
[1645866190220,0.0336,38785.0,38784.0,0.001]
[1645866190820,0.3336,38785.0,38784.0,0.001]
[1645866191620,0.3326,38785.0,38784.0,0.001]
[1645866192223,0.3336,38785.0,38784.0,0.001]
[1645866192826,0.0336,38785.0,38784.0,0.001]
[1645866193493,0.0326,38785.0,38784.0,0.001]
[1645866194289,0.0326,38785.0,38784.0,0.002]
[1645866194490,0.02678712,38785.0,38784.0,0.002]
[1645866195097,0.81218712,38785.0,38784.0,0.002]
[1645866195293,1.05156643,38785.0,38784.0,0.002]
[1645866195492,1.05156643,38785.0,38784.0,0.001]
[1645866195695,0.81218712,38785.0,38784.0,0.001]
[1645866195893,0.02678712,38785.0,38784.0,0.001]
[1645866196295,0.02678712,38785.0,38784.0,0.002]
[1645866196997,0.02678712,38785.0,38784.0,0.20172299]
[1645866197231,0.02678712,38785.0,38784.0,0.25172299]
[1645866197631,0.02678712,38785.0,38784.0,0.20172299]
[1645866197828,0.02678712,38785.0,38784.0,0.25172299]
[1645866198029,0.02678712,38785.0,38784.0,0.20172299]
[1645866198329,0.02678712,38785.0,38784.0,0.25072299]
[1645866198631,0.02678712,38785.0,38784.0,0.20072299]
[1645866200328,0.02678712,38785.0,38784.0,0.20472299]
[1645866201563,0.02678712,38785.0,38784.0,0.20072299]
[1645866202364,0.02678712,38785.0,38784.0,0.20372299]
[1645866203564,0.02678712,38785.0,38784.0,0.20072299]
[1645866204365,0.02678712,38785.0,38784.0,0.20372299]
[1645866204848,0.01952102,38785.0,38784.0,0.20372299]
[1645866205648,0.01952102,38785.0,38784.0,0.20072299]
[1645866208351,0.01952102,38785.0,38784.0,0.25072299]
[1645866210177,0.30329999,38795.0,38784.0,0.25072299]
[1645866210178,0.00329999,38795.0,38785.0,1.2]
[1645866210378,0.00329999,38795.0,38785.0,1.3765]
[1645866210583,0.00329999,38795.0,38789.0,0.1]
[1645866210776,0.00329999,38795.0,38789.0,0.2015]
[1645866210976,0.00329999,38795.0,38791.0,0.1]
[1645866211176,0.00329999,38795.0,38792.0,0.0515]
[1645866212418,0.00239439,38795.0,38792.0,0.0515]
[1645866213221,0.00239439,38795.0,38790.0,0.26019446]
[1645866214422,0.00239439,38795.0,38790.0,0.21319446]
[1645866214626,0.00239439,38795.0,38790.0,0.003]
[1645866214627,0.00204895,38795.0,38790.0,0.003]
[1645866215022,0.00204895,38795.0,38791.0,0.00030562]
[1645866215968,0.00204895,38795.0,38788.0,0.1737701]
[1645866216164,0.00204895,38795.0,38791.0,0.00030562]
[1645866217165,0.00204895,38795.0,38788.0,0.1737701]
[1645866218366,0.00204895,38795.0,38788.0,0.1757701]
[1645866218570,0.00204895,38795.0,38790.0,0.00030586]
[1645866219716,0.00204895,38795.0,38788.0,0.2237701]
[1645866219915,0.00204895,38795.0,38791.0,0.00030585]
[1645866220618,0.10810803,38800.0,38791.0,0.00030585]
[1645866220918,0.10810803,38800.0,38788.0,0.2237701]
[1645866221118,0.10810803,38800.0,38791.0,0.00030585]
[1645866221815,0.10810803,38800.0,38794.0,0.23094548]
[1645866222215,0.10810803,38800.0,38794.0,0.23125133]
[1645866222417,0.10810803,38800.0,38794.0,0.23225133]
[1645866223217,0.10810803,38800.0,38794.0,0.23194548]
[1645866223468,0.10810803,38800.0,38795.0,0.00030584]
[1645866224470,0.10810803,38800.0,38795.0,0.002]
[1645866224670,0.10810803,38800.0,38796.0,0.00030584]
[1645866225569,0.10810803,38800.0,38795.0,0.002]
[1645866225570,0.10810803,38800.0,38794.0,0.23094548]
[1645866225772,0.10810803,38800.0,38796.0,0.00030584]
[1645866226573,0.0597,38801.0,38796.0,0.00030584]
[1645866226775,0.0597,38801.0,38797.0,0.0515]
[1645866227217,0.0597,38801.0,38797.0,0.22726]
[1645866227419,0.10810803,38808.0,38797.0,0.22726]
[1645866227616,0.10810803,38808.0,38805.0,0.16959829]
[1645866227817,0.33919658,38801.0,38798.0,0.23920481]
[1645866228017,0.33919658,38801.0,38798.0,0.29070481]
[1645866228418,0.33919658,38801.0,38798.0,0.29270481]
[1645866228918,0.33919658,38801.0,38798.0,0.0535]
[1645866229124,0.33919658,38801.0,38798.0,0.002]
[1645866229818,0.33919658,38801.0,38790.0,0.125]
[1645866230018,0.33919658,38801.0,38793.0,0.17727531]
[1645866230338,0.3,38800.0,38790.0,0.078]
[1645866230526,0.40810803,38800.0,38790.0,0.028]
[1645866230718,0.40810803,38800.0,38795.0,0.00030701]
[1645866231377,0.10810803,38800.0,38795.0,0.00030701]
[1645866231774,0.10810803,38800.0,38791.0,0.17213887]
[1645866232072,0.10810803,38800.0,38796.0,0.00030701]
[1645866232273,0.33919658,38801.0,38796.0,0.00030701]
[1645866232873,0.33919658,38801.0,38791.0,0.22413887]
[1645866233074,0.33919658,38801.0,38797.0,0.00030701]
[1645866233676,0.33919658,38801.0,38797.0,0.20755887]
[1645866234075,0.33919658,38801.0,38797.0,0.20725186]
[1645866234275,0.33919658,38801.0,38797.0,0.20755864]
[1645866235323,0.33919658,38801.0,38797.0,0.20725186]
[1645866235525,0.33919658,38801.0,38797.0,0.20755864]
[1645866235927,0.0103,38811.0,38798.0,1.52576]
[1645866236130,0.0103,38814.0,38802.0,0.02576]
[1645866236328,1.0004,38818.0,38803.0,0.82464]
[1645866236532,1.0004,38818.0,38810.0,0.02576]
[1645866236728,0.5,38825.0,38815.0,0.22852937]
[1645866236927,0.9795,38826.0,38816.0,0.0515]
[1645866237125,0.3,38825.0,38816.0,0.0515]
[1645866237627,0.02576,38824.0,38816.0,0.0515]
[1645866237828,0.10810803,38822.0,38816.0,0.0515]
[1645866238026,0.3103,38821.0,38816.0,0.0515]
[1645866238866,0.42473342,38821.0,38816.0,0.0515]
[1645866239071,0.12473342,38821.0,38816.0,0.0515]
[1645866239267,0.0603,38821.0,38816.0,0.0515]
[1645866239468,0.0103,38821.0,38816.0,0.0515]
[1645866239869,0.0103,38822.0,38816.0,0.0515]
[1645866240071,0.0103,38825.0,38816.0,0.0515]
[1645866240271,1.08760803,38826.0,38816.0,0.0515]
[1645866240570,1.08760803,38826.0,38816.0,0.0525]
[1645866241579,1.08760803,38826.0,38816.0,0.001]
[1645866242215,1.08760803,38826.0,38813.0,0.28991816]
[1645866242419,0.9795,38826.0,38813.0,0.28991816]
[1645866243017,0.29940867,38825.0,38813.0,0.28991816]
[1645866244518,0.29940867,38825.0,38813.0,0.29091816]
[1645866244924,0.10810803,38821.0,38813.0,0.001]
[1645866245119,0.29948405,38820.0,38813.0,0.001]
[1645866245719,0.29948405,38820.0,38807.0,0.05030727]
[1645866245975,0.29948405,38820.0,38810.0,0.18642651]
[1645866246169,0.32524405,38820.0,38810.0,0.18642651]
[1645866246368,0.29948405,38820.0,38807.0,0.05030724]
[1645866246571,0.29948405,38820.0,38807.0,0.00030724]
[1645866246971,0.3103,38825.0,38807.0,0.00030724]
[1645866247168,0.02576,38824.0,38807.0,0.00030724]
[1645866247370,0.02576,38824.0,38810.0,0.1784465]
[1645866247571,0.02576,38824.0,38810.0,0.2284465]
[1645866248371,0.02576,38824.0,38807.0,0.00030725]
[1645866248573,0.02576,38824.0,38805.0,0.001]
[1645866248574,0.02576,38817.0,38805.0,0.001]
[1645866248771,0.02576,38817.0,38807.0,0.00030726]
[1645866248772,0.10810803,38812.0,38807.0,0.00030726]
[1645866248972,0.3,38811.0,38807.0,0.00030726]
[1645866249572,0.10810803,38812.0,38807.0,0.00030726]
[1645866249821,0.3,38811.0,38807.0,0.00030721]
[1645866250016,0.10810803,38816.0,38807.0,0.00030721]
[1645866250218,0.47255003,38816.0,38807.0,0.00030721]
[1645866250417,0.47082381,38816.0,38807.0,0.00230721]
[1645866250918,0.47082381,38816.0,38807.0,0.002]
[1645866250919,0.40638181,38816.0,38807.0,0.002]
[1645866251119,0.3,38816.0,38807.0,0.00230723]
[1645866251319,0.49658381,38816.0,38807.0,0.00230723]
[1645866251520,0.47082381,38816.0,38807.0,0.00230723]
[1645866251719,0.40638181,38816.0,38807.0,0.00030723]
[1645866251924,0.3,38816.0,38807.0,0.00030723]
[1645866252119,0.3103,38819.0,38805.0,0.19984677]
[1645866252321,0.3603,38819.0,38807.0,0.00030723]
[1645866253320,0.3603,38819.0,38805.0,0.24984677]
[1645866253321,0.3,38819.0,38805.0,0.24984677]
[1645866253569,0.3,38819.0,38814.0,0.20627814]
[1645866253769,0.0103,38824.0,38814.0,0.20627814]
[1645866253969,0.3103,38825.0,38814.0,0.20627814]
[1645866254769,0.3103,38825.0,38814.0,0.25627814]
[1645866255972,0.3,38825.0,38814.0,0.25627814]
[1645866256472,0.3,38825.0,38820.0,0.19586264]
[1645866256873,0.32576,38828.0,38820.0,0.19586264]
[1645866257320,0.32576,38828.0,38814.0,0.051]
[1645866257521,0.32576,38828.0,38814.0,0.001]
[1645866257721,0.55871626,38828.0,38814.0,0.001]
[1645866257924,0.002,38813.0,38809.0,0.1015]
[1645866258121,0.002,38813.0,38809.0,0.0515]
[1645866258321,0.002,38813.0,38810.0,0.27365453]
[1645866258623,0.00043998,38813.0,38811.0,0.85]
[1645866258822,0.00043998,38813.0,38811.0,0.9]
[1645866260023,0.00043998,38813.0,38812.0,0.0515]
[1645866260223,0.00043998,38813.0,38812.0,0.1015]
[1645866262072,0.00043998,38813.0,38812.0,0.291664]
[1645866262472,0.00043998,38813.0,38812.0,0.294664]
[1645866262672,9.98e-06,38813.0,38812.0,1.067624]
[1645866263074,9.98e-06,38813.0,38812.0,1.23533856]
[1645866263475,9.98e-06,38813.0,38812.0,1.13533856]
[1645866263675,9.98e-06,38813.0,38812.0,1.064624]
[1645866264375,9.98e-06,38813.0,38812.0,1.364624]
[1645866264576,0.0103,38834.0,38812.0,2.011424]
[1645866264830,0.01,38839.0,38824.0,0.02576]
[1645866265028,0.01,38839.0,38825.0,0.1015]
[1645866265323,0.01,38839.0,38826.0,0.87268]
[1645866265522,0.01,38839.0,38832.0,0.21735297]
[1645866265721,0.01,38839.0,38832.0,0.31885297]
[1645866265922,0.01,38839.0,38835.0,0.05]
[1645866266323,0.01029,38838.0,38835.0,0.05]
[1645866266522,0.01029,38838.0,38835.0,0.052]
[1645866267128,0.11667181,38838.0,38835.0,0.052]
[1645866267331,0.08911614,38834.0,38826.0,0.77268]
[1645866267628,0.08911614,38834.0,38826.0,0.82268]
[1645866267826,0.08411614,38834.0,38826.0,0.82268]
[1645866268482,0.08411614,38834.0,38826.0,0.82368]
[1645866269780,0.08411614,38834.0,38826.0,0.82268]
[1645866270381,0.08411614,38834.0,38826.0,0.8222307]
[1645866270579,0.08411614,38834.0,38826.0,0.8232307]
[1645866271381,0.08411614,38834.0,38827.0,0.3]
[1645866271584,0.08411614,38834.0,38827.0,0.0515]
[1645866271782,0.08411614,38834.0,38828.0,0.77264]
[1645866271980,0.08411614,38834.0,38829.0,0.0515]
[1645866272226,0.08411614,38834.0,38830.0,0.7726]
[1645866272427,0.08411614,38834.0,38832.0,0.18665336]
[1645866272628,0.08411614,38834.0,38833.0,0.82404]
[1645866274025,0.08411614,38834.0,38833.0,0.77254]
[1645866274226,0.57023895,38834.0,38833.0,0.77254]
[1645866274425,0.46385714,38834.0,38833.0,0.77254]
[1645866274625,0.08411614,38834.0,38833.0,0.77254]
[1645866275972,0.38411614,38834.0,38833.0,0.77254]
[1645866276472,0.08411614,38834.0,38833.0,0.77254]
[1645866278574,0.08411614,38834.0,38833.0,0.77354]
[1645866279839,0.08411614,38834.0,38833.0,0.77254]
[1645866282144,0.38411614,38834.0,38833.0,0.77254]
[1645866282343,0.76385714,38834.0,38833.0,0.77254]
[1645866283343,0.38411614,38834.0,38833.0,0.77254]
[1645866287726,0.38411614,38834.0,38833.0,0.04664435]
[1645866287921,0.0932887,38821.0,38818.0,0.24383719]
[1645866288127,0.0932887,38821.0,38818.0,0.29383719]
[1645866288522,0.0932887,38821.0,38819.0,0.0999]
[1645866288723,0.0932887,38821.0,38819.0,0.1494507]
[1645866288923,0.0932887,38821.0,38819.0,0.05]
[1645866289124,0.0932887,38821.0,38820.0,0.05]
[1645866289728,0.0932887,38821.0,38818.0,0.29383719]
[1645866289930,0.0932887,38821.0,38816.0,0.064405]
[1645866289931,0.3,38820.0,38816.0,0.064405]
[1645866290234,0.3,38820.0,38810.0,0.1998]
[1645866290235,0.10638181,38819.0,38810.0,0.1998]
[1645866290430,0.10638181,38816.0,38807.0,0.14970986]
[1645866290633,0.32576,38815.0,38807.0,0.0994]
[1645866291082,0.10638181,38812.0,38807.0,0.0994]
[1645866291281,0.3,38811.0,38807.0,0.0994]
[1645866291479,0.02576,38815.0,38807.0,0.0994]
[1645866291681,0.390205,38815.0,38807.0,0.0994]
[1645866292480,0.390205,38815.0,38807.0,0.1004]
[1645866293082,0.10638181,38812.0,38807.0,0.1004]
[1645866293287,0.3,38811.0,38807.0,0.10070957]
[1645866294279,0.364451,38811.0,38807.0,0.1004]
[1645866294483,0.47183281,38811.0,38807.0,0.09970956]
[1645866294728,0.47183281,38811.0,38807.0,0.00030956]
[1645866295530,0.47183281,38811.0,38802.0,0.001]
[1645866295531,0.301,38811.0,38802.0,0.001]
[1645866295728,0.301,38811.0,38799.0,0.44692337]
[1645866295729,0.301,38811.0,38807.0,0.00030956]
[1645866295933,0.3103,38814.0,38807.0,0.00030956]
[1645866296131,0.3603,38814.0,38807.0,0.00030956]
[1645866296634,0.10638181,38810.0,38807.0,0.001]
[1645866296833,0.3,38809.0,38807.0,0.00130957]
[1645866297832,0.3,38809.0,38799.0,0.1998]
[1645866297833,0.02576,38808.0,38799.0,0.1998]
[1645866298132,0.3,38809.0,38806.0,0.00030957]
[1645866298133,0.36445145,38809.0,38806.0,0.00030957]
[1645866298338,0.36445145,38809.0,38792.0,0.27278648]
[1645866298339,0.10638181,38792.0,38791.0,0.0011]
[1645866298621,0.88762281,38792.0,38791.0,0.0011]
[1645866298911,0.59793281,38792.0,38791.0,0.0011]
[1645866299114,0.21819181,38792.0,38789.0,0.72597299]
[1645866299311,0.10638181,38791.0,38789.0,0.72597299]
[1645866299510,0.40638181,38791.0,38789.0,0.72597299]
[1645866299712,0.0515,38792.0,38789.0,0.72597299]
[1645866300111,0.3,38793.0,38789.0,0.72597299]
[1645866300313,0.10638181,38791.0,38789.0,0.72597299]
[1645866300512,0.05,38794.0,38789.0,0.72697299]
[1645866300712,0.3,38793.0,38789.0,0.72697299]
[1645866300914,0.302,38797.0,38789.0,0.72697299]
[1645866301118,0.002,38797.0,38789.0,0.72697299]
[1645866301713,0.002,38797.0,38791.0,0.00030867]
[1645866301914,0.3,38799.0,38791.0,0.00030867]
[1645866302113,0.10638181,38798.0,38791.0,0.00030867]
[1645866302329,0.3,38797.0,38791.0,0.00030867]
[1645866302538,0.32576,38797.0,38791.0,0.00030867]
[1645866302729,0.32576,38797.0,38789.0,0.72597299]
[1645866302730,0.10638181,38796.0,38789.0,0.72597299]
[1645866302929,0.3,38795.0,38792.0,0.00030843]
[1645866303130,0.3,38797.0,38792.0,0.00030843]
[1645866303931,0.10638181,38796.0,38791.0,0.20051541]
[1645866304131,0.3,38795.0,38793.0,0.00030843]
[1645866304332,0.3,38798.0,38793.0,0.00030843]
[1645866304833,0.064463,38804.0,38793.0,0.00030843]
[1645866304834,0.31031,38801.0,38793.0,0.00030843]
[1645866305032,0.31031,38801.0,38791.0,0.20251541]
[1645866305232,0.31031,38801.0,38794.0,0.00030843]
[1645866305233,2.51855745,38801.0,38794.0,0.00030843]
[1645866305433,2.50824745,38801.0,38794.0,0.00030843]
[1645866305633,0.10638181,38800.0,38794.0,0.00030843]
[1645866305835,0.3,38799.0,38794.0,0.00030843]
[1645866306277,0.3,38799.0,38791.0,0.20051541]
[1645866306476,0.3,38799.0,38795.0,0.00030843]
[1645866307473,0.3,38799.0,38791.0,0.20051541]
[1645866307674,0.3,38799.0,38795.0,0.00030843]
[1645866307873,2.20824745,38801.0,38795.0,0.00030843]
[1645866307874,0.3,38800.0,38795.0,0.00030843]
[1645866308274,2.20824745,38801.0,38795.0,0.00030843]
[1645866308477,0.3,38800.0,38795.0,0.00030843]
[1645866308674,0.001,38800.0,38795.0,0.00030843]
[1645866308878,0.001,38800.0,38796.0,0.00030842]
[1645866309743,0.3,38802.0,38796.0,0.00030842]
[1645866309940,0.3,38802.0,38797.0,0.21356121]
[1645866310541,0.3,38802.0,38797.0,0.21456121]
[1645866311146,0.3,38802.0,38797.0,0.001]
[1645866311347,0.3,38802.0,38798.0,0.00030842]
[1645866312348,0.45638181,38802.0,38792.0,0.16966864]
[1645866312547,0.45638181,38802.0,38798.0,0.00030842]
[1645866312947,0.44238181,38802.0,38798.0,0.00030842]
[1645866313146,0.35,38802.0,38798.0,0.00030842]
[1645866313580,0.35,38802.0,38798.0,0.19959824]
[1645866313780,0.0736396,38803.0,38798.0,0.19959824]
[1645866313781,0.0736396,38803.0,38798.0,0.19990689]
[1645866313979,0.9683,38805.0,38798.0,0.19990689]
[1645866313980,0.7392,38805.0,38798.0,0.19990689]
[1645866314189,0.0103,38809.0,38798.0,0.19990689]
[1645866314380,0.4797,38810.0,38799.0,0.0515]
[1645866314578,0.2483,38810.0,38799.0,0.0515]
[1645866314779,0.2483,38810.0,38805.0,0.21637699]
[1645866315179,0.0633296,38812.0,38805.0,0.21637699]
[1645866315784,0.02576,38814.0,38805.0,0.21637699]
[1645866315785,0.0103,38813.0,38805.0,0.21637699]
[1645866316279,1.96533382,38813.0,38805.0,0.21637699]
[1645866316479,1.95503382,38813.0,38805.0,0.21637699]
[1645866324742,0.0103,38816.0,38805.0,0.21937699]
[1645866324937,0.0103,38816.0,38805.0,0.27087699]
[1645866325136,0.8167,38817.0,38805.0,0.27087699]
[1645866325537,0.7667,38817.0,38805.0,0.27087699]
[1645866325737,0.7667,38817.0,38811.0,0.21207975]
[1645866325937,0.25493817,38809.0,38808.0,0.23301487]
[1645866326537,0.12218197,38809.0,38808.0,0.23501487]
[1645866327941,0.12218197,38809.0,38808.0,0.23301487]
[1645866328580,0.12218197,38809.0,38808.0,0.28851487]
[1645866329879,0.12218197,38809.0,38808.0,0.28451487]
[1645866331580,0.12218197,38809.0,38808.0,0.33451487]
[1645866333830,0.12218197,38809.0,38808.0,0.36027487]
[1645866334231,0.12218197,38809.0,38808.0,0.33451487]
[1645866334630,0.12218197,38809.0,38808.0,0.33751487]
[1645866334834,0.12218197,38809.0,38808.0,0.36327487]
[1645866335231,0.12218197,38809.0,38808.0,0.41327487]
[1645866335430,0.12218197,38809.0,38808.0,1.18630487]
[1645866335830,0.12218197,38809.0,38808.0,1.18330487]
[1645866337589,0.12218197,38809.0,38808.0,1.70049665]
[1645866337781,0.12218197,38809.0,38808.0,1.40049665]
[1645866337981,0.11910353,38809.0,38808.0,1.18330487]
[1645866338183,0.11910353,38809.0,38808.0,1.50049665]
[1645866338683,0.11910353,38809.0,38808.0,1.28730487]
[1645866339743,0.11910353,38809.0,38808.0,1.50449665]
[1645866339943,0.11910353,38809.0,38808.0,1.50049665]
[1645866340151,0.11910353,38809.0,38808.0,1.34771487]
[1645866340745,0.11910353,38809.0,38808.0,1.36201487]
[1645866341543,0.11910353,38809.0,38808.0,1.35171487]
[1645866341944,0.11910353,38809.0,38808.0,0.92453]
[1645866342145,0.11910353,38809.0,38808.0,0.87303]
[1645866343144,0.11910353,38809.0,38808.0,1.09951432]
[1645866343586,0.11910353,38809.0,38808.0,1.12527432]
[1645866343986,0.11910353,38809.0,38808.0,1.34258593]
[1645866344386,0.11910353,38809.0,38808.0,1.39408593]
[1645866344987,0.11910353,38809.0,38808.0,1.45849993]
[1645866345391,0.11910353,38809.0,38808.0,1.39408593]
[1645866345988,0.11910353,38809.0,38808.0,1.17677432]
[1645866346587,0.11910353,38809.0,38808.0,1.17977432]
[1645866347238,0.11910353,38809.0,38808.0,1.05251432]
[1645866347438,0.11910353,38809.0,38808.0,1.00251432]
[1645866347840,0.11910353,38809.0,38808.0,0.77303]
[1645866348637,0.11910353,38809.0,38808.0,0.77503]
[1645866348839,0.11910353,38809.0,38808.0,1.00946227]
[1645866349839,0.11910353,38809.0,38808.0,1.00746227]
[1645866350643,0.11910353,38809.0,38808.0,1.00946227]
[1645866350838,0.11910353,38809.0,38808.0,0.77503]
[1645866351886,0.11910353,38809.0,38808.0,0.77303]
[1645866352086,0.11910353,38809.0,38808.0,0.98784081]
[1645866352486,0.11910353,38809.0,38808.0,0.77303]
[1645866352689,0.11910353,38809.0,38808.0,0.77603]
[1645866353987,0.11910353,38809.0,38808.0,0.77303]
[1645866356539,0.11910353,38809.0,38808.0,0.99043598]
[1645866356741,0.11910353,38809.0,38808.0,0.99343598]
[1645866357741,0.11910353,38809.0,38808.0,0.77603]
[1645866357940,0.11910353,38809.0,38808.0,0.77303]
[1645866358785,0.11910353,38809.0,38808.0,0.77603]
[1645866359689,0.11910353,38809.0,38808.0,1.0474028]
[1645866359886,0.11910353,38809.0,38808.0,0.77603]
[1645866360086,0.11910353,38809.0,38808.0,1.0974028]
[1645866360488,0.11910353,38809.0,38808.0,0.82303]
[1645866360688,0.11910353,38809.0,38808.0,0.82503]
[1645866361288,0.11910353,38809.0,38808.0,0.87503]
[1645866361489,0.11903956,38809.0,38808.0,0.87503]
[1645866362089,0.11903956,38809.0,38808.0,0.87303]
[1645866362338,0.11903956,38809.0,38808.0,1.40507966]
[1645866362738,0.11903956,38809.0,38808.0,1.40707966]
[1645866363138,0.11903956,38809.0,38808.0,1.35707966]
[1645866363739,0.41903956,38809.0,38808.0,1.30707966]
[1645866363942,0.41903956,38809.0,38808.0,1.03303]
[1645866366693,0.42103956,38809.0,38808.0,1.03303]
[1645866368293,0.41903956,38809.0,38808.0,1.03303]
[1645866368594,0.80078056,38809.0,38808.0,1.03303]
[1645866368799,0.42103956,38809.0,38808.0,1.03303]
[1645866369739,0.43133956,38809.0,38808.0,1.03303]